bitfinex-derivatives/quotes_SOLF0:USTF0_20250819
["timestamp","ask_amount","ask_price","bid_price","bid_amount"]
[1755591119015,3.01,179.23,179.13,3.16]
[1755591120019,3.01,179.21,179.13,3.16]
[1755591121418,3.01,179.21,179.1,3.16]
[1755591121620,3.01,179.19,179.1,3.16]
[1755591121821,4.49956922,179.18,179.1,3.16]
[1755591122031,3.01,179.19,179.1,3.16]
[1755591122320,3.72608011,179.2,179.1,3.16]
[1755591122321,3.01,179.17,179.1,3.16]
[1755591122527,4.50144297,179.16,179.1,3.16]
[1755591122718,3.01,179.17,179.1,3.16]
[1755591123224,3.01,179.2,179.11,3.72608011]
[1755591123428,4.50631525,179.19,179.12,3.16]
[1755591123724,3.01,179.23,179.13,3.16]
[1755591124025,3.01,179.23,179.15,3.16]
[1755591124224,137.14,179.25,179.15,3.16]
[1755591124427,7.52227564,179.24,179.15,3.16]
[1755591124622,3.01,179.24,179.15,3.16]
[1755591124819,4.51097221,179.23,179.15,3.16]
[1755591125018,4.51097221,179.22,179.15,3.16]
[1755591125215,4.51097221,179.21,179.15,3.16]
[1755591126424,137.14,179.25,179.15,3.16]
[1755591126725,4.53911093,179.24,179.15,3.16]
[1755591127122,4.5388174,179.23,179.15,3.16]
[1755591127329,4.5388174,179.22,179.16,3.16]
[1755591127519,4.5388174,179.24,179.18,3.16]
[1755591127724,4.5415492,179.23,179.17,3.72608011]
[1755591127922,4.5415492,179.22,179.2,3.16]
[1755591128222,137.14,179.25,179.18,3.16]
[1755591128426,4.54487285,179.24,179.18,3.16]
[1755591128627,4.54487285,179.24,179.17,9.30488011]
[1755591128628,4.54487285,179.23,179.19,3.16]
[1755591128828,3.01,179.26,179.21,3.16]
[1755591129024,4.54487384,179.25,179.21,3.16]
[1755591129224,4.54487384,179.24,179.21,3.16]
[1755591129423,4.54667724,179.23,179.21,3.16]
[1755591129627,3.01,179.26,179.21,3.16]
[1755591129829,4.54612155,179.25,179.19,3.16]
[1755591130029,140.96608011,179.32,179.2,3.72608011]
[1755591130324,7.55677253,179.31,179.21,8.7376]
[1755591130629,4.54677253,179.3,179.22,3.16]
[1755591132024,4.54677253,179.3,179.23,3.72608011]
[1755591132825,4.54677253,179.3,179.24,3.16]
[1755591133430,3.01,179.31,179.24,3.16]
[1755591134033,137.24,179.32,179.24,3.16]
[1755591134232,3.01,179.35,179.27,3.16]
[1755591134536,3.01,179.35,179.29,3.72608011]
[1755591135125,140.25,179.39,179.32,3.72608011]
[1755591135927,140.25,179.39,179.33,3.16]
[1755591136231,378.64608011,179.44,179.33,3.16]
[1755591136232,374.92,179.44,179.33,3.16]
[1755591136533,3.01,179.43,179.33,3.16]
[1755591137227,4.53920188,179.42,179.29,3.16]
[1755591137435,3.01,179.4,179.29,6.88608011]
[1755591138535,3.01,179.37,179.25,3.72608011]
[1755591138834,3.01,179.37,179.25,6.88608011]
[1755591139727,3.01,179.37,179.25,3.16]
[1755591140124,3.01,179.37,179.28,3.16]
[1755591140531,3.01,179.37,179.28,5.5756]
[1755591140734,3.01,179.37,179.3,3.72608011]
[1755591141033,3.01,179.37,179.31,3.16]
[1755591141435,3.01,179.41,179.31,3.16]
[1755591141632,3.01,179.41,179.33,3.72608011]
[1755591141828,3.01,179.41,179.34,3.16]
[1755591145037,377.96,179.44,179.34,3.16]
[1755591145543,377.96,179.44,179.35,2.91]
[1755591145839,377.96,179.44,179.36,3.72608011]
[1755591146045,3.04,179.44,179.37,2.91]
[1755591146431,137.3,179.45,179.37,2.91]
[1755591146635,137.3,179.45,179.37,8.4828]
[1755591146838,137.3,179.45,179.38,2.91]
[1755591147033,137.3,179.45,179.39,3.72608011]
[1755591147444,3.04,179.46,179.39,3.72608011]
[1755591147735,3.04,179.46,179.38,2.91]
[1755591150030,121.40735362,179.49,179.38,2.91]
[1755591150234,3.04,179.48,179.38,2.91]
[1755591150440,3.04,179.48,179.39,3.72608011]
[1755591151643,3.04,179.46,179.33,3.72608011]
[1755591152738,3.72608011,179.44,179.33,3.72608011]
[1755591152938,3.04,179.42,179.33,3.72608011]
[1755591153338,3.04,179.42,179.34,2.91]
[1755591166353,3.04,179.42,179.31,2.91]
[1755591168658,3.04,179.42,179.34,2.91]
[1755591172264,4.53223651,179.41,179.34,2.91]
[1755591172564,3.04,179.42,179.34,2.91]
[1755591172762,4.53246121,179.41,179.34,2.91]
[1755591172966,3.04,179.42,179.34,2.91]
[1755591173365,4.53581902,179.41,179.34,2.91]
[1755591173566,3.04,179.42,179.34,2.91]
[1755591173766,4.53692305,179.41,179.34,2.91]
[1755591174062,3.04,179.42,179.34,2.91]
[1755591174366,4.53692404,179.41,179.34,2.91]
[1755591174561,3.04,179.42,179.34,2.91]
[1755591174962,137.26,179.43,179.37,2.92]
[1755591176469,4.54678594,179.42,179.34,2.92]
[1755591176661,4.54678594,179.41,179.34,2.92]
[1755591176866,140.28,179.43,179.34,2.92]
[1755591177065,3.02,179.41,179.34,2.92]
[1755591178265,137.26,179.43,179.34,2.92]
[1755591178570,4.55037638,179.42,179.34,2.92]
[1755591178768,4.55037638,179.41,179.34,2.92]
[1755591179066,137.26,179.43,179.34,7.55246336]
[1755591179270,4.55342086,179.42,179.35,2.92]
[1755591179472,4.55342086,179.41,179.36,3.72608011]
[1755591179770,137.26,179.43,179.4,2.92]
[1755591179968,3.02,179.44,179.41,2.92]
[1755591180175,4.55534565,179.43,179.41,2.92]
[1755591180467,3.02,179.44,179.38,2.92]
[1755591180663,3.02,179.42,179.38,2.92]
[1755591181670,3.72608011,179.48,179.35,4.63246336]
[1755591181671,3.02,179.47,179.35,4.63246336]
[1755591181871,3.02,179.44,179.34,2.92]
[1755591182070,3.02,179.42,179.34,2.92]
[1755591182374,4.55504831,179.41,179.34,2.92]
[1755591182573,3.02,179.42,179.34,2.92]
[1755591182776,4.55480974,179.41,179.34,2.92]
[1755591182976,3.02,179.42,179.34,2.92]
[1755591183173,3.72608011,179.48,179.36,3.72608011]
[1755591183473,3.02,179.45,179.37,2.92]
[1755591183674,4.55542315,179.44,179.37,2.92]
[1755591185076,4.55542315,179.44,179.37,7.55246336]
[1755591185775,3.02,179.43,179.37,4.63246336]
[1755591185970,3.02,179.43,179.33,6.64608011]
[1755591185971,4.57595975,179.42,179.34,4.63246336]
[1755591186170,3.02,179.43,179.35,4.63246336]
[1755591186366,4.57629925,179.42,179.35,4.63246336]
[1755591186578,3.02,179.43,179.35,7.55246336]
[1755591186776,4.57629739,179.42,179.35,2.92]
[1755591186974,3.02,179.43,179.34,4.63246336]
[1755591187179,3.02,179.41,179.34,4.63246336]
[1755591189972,3.02,179.41,179.35,2.92]
[1755591190569,3.02,179.45,179.35,2.92]
[1755591190873,3.02,179.43,179.35,2.92]
[1755591191074,4.57573629,179.42,179.35,2.92]
[1755591191270,3.02,179.43,179.35,2.92]
[1755591191470,4.57709869,179.42,179.35,2.92]
[1755591191677,3.02,179.43,179.35,2.92]
[1755591191866,4.57717789,179.42,179.35,2.92]
[1755591192071,3.02,179.43,179.35,2.92]
[1755591192377,4.57717789,179.42,179.35,2.92]
[1755591192684,3.02,179.43,179.35,7.55246336]
[1755591192972,4.5784865,179.42,179.35,7.55246336]
[1755591193177,3.02,179.43,179.36,7.55246336]
[1755591193379,4.57920955,179.42,179.36,7.55246336]
[1755591193677,3.02,179.43,179.36,7.55246336]
[1755591193866,4.57893993,179.42,179.36,7.55246336]
[1755591194069,3.02,179.43,179.36,7.55246336]
[1755591194271,4.57893993,179.42,179.36,7.55246336]
[1755591194580,3.02,179.43,179.36,7.55246336]
[1755591194878,3.02,179.41,179.35,4.63246336]
[1755591199176,4.58112767,179.4,179.33,4.63246336]
[1755591199382,4.58098704,179.39,179.33,4.63246336]
[1755591199678,3.02,179.37,179.33,7.55246336]
[1755591200082,3.02,179.42,179.34,4.63246336]
[1755591200281,4.58105085,179.41,179.34,4.63246336]
[1755591200481,4.58151362,179.4,179.34,4.63246336]
[1755591200780,7.60129644,179.39,179.33,7.55246336]
[1755591201081,3.02,179.39,179.33,7.55246336]
[1755591201982,3.02,179.39,179.33,4.63246336]
[1755591202785,4.58188564,179.38,179.32,4.63246336]
[1755591202976,3.02,179.39,179.32,4.63246336]
[1755591203176,4.58052637,179.38,179.32,4.63246336]
[1755591203482,3.02,179.39,179.32,4.63246336]
[1755591203679,4.57948538,179.38,179.32,4.63246336]
[1755591203879,3.02,179.39,179.32,4.63246336]
[1755591204080,4.57936245,179.38,179.32,4.63246336]
[1755591204280,3.02,179.39,179.32,4.63246336]
[1755591208486,4.57572486,179.38,179.31,4.63246336]
[1755591208688,3.05,179.36,179.29,7.76246336]
[1755591213090,3.05,179.36,179.3,3.13]
[1755591214385,3.05,179.39,179.31,3.13]
[1755591214588,3.05,179.39,179.34,3.13]
[1755591214788,3.05,179.42,179.35,3.13]
[1755591215088,4.57075343,179.41,179.35,3.13]
[1755591215290,3.05,179.42,179.35,3.13]
[1755591215489,4.61244399,179.41,179.35,3.13]
[1755591215693,3.05,179.42,179.35,3.13]
[1755591215884,4.61263714,179.41,179.35,3.13]
[1755591216085,3.05,179.45,179.35,3.13]
[1755591216287,3.05,179.43,179.35,3.13]
[1755591216489,4.61165773,179.42,179.35,3.13]
[1755591217585,3.05,179.41,179.35,3.13]
[1755591221397,4.61127068,179.4,179.36,3.13]
[1755591221696,3.05,179.41,179.33,3.13]
[1755591222195,4.61178137,179.4,179.33,3.13]
[1755591222396,3.05,179.44,179.35,3.72608011]
[1755591222592,3.05,179.44,179.36,7.76246336]
[1755591222792,3.05,179.44,179.37,3.13]
[1755591225000,3.05,179.47,179.39,3.13]
[1755591225191,4.61192074,179.46,179.39,3.13]
[1755591225391,3.05,179.47,179.39,3.13]
[1755591225591,4.61107904,179.46,179.39,3.13]
[1755591225787,3.05,179.47,179.41,3.72608011]
[1755591225994,3.05,179.47,179.41,6.85608011]
[1755591227601,3.05,179.47,179.41,3.72608011]
[1755591230305,121.40735362,179.49,179.42,3.13]
[1755591230495,121.40735362,179.49,179.43,3.72608011]
[1755591230697,121.40735362,179.49,179.45,3.13]
[1755591231002,3.05,179.51,179.43,3.72608011]
[1755591231501,3.05,179.51,179.43,6.85608011]
[1755591237406,3.05,179.51,179.4,6.87608011]
[1755591240103,3.05,179.51,179.41,3.15]
[1755591241008,3.05,179.51,179.43,3.72608011]
[1755591241311,3.05,179.51,179.45,3.72608011]
[1755591241509,3.05,179.51,179.47,3.15]
[1755591242410,2.95,179.5,179.47,3.15]
[1755591242915,139.65,179.52,179.48,3.15]
[1755591243711,2.95,179.51,179.45,3.72608011]
[1755591244813,2.95,179.51,179.42,3.72608011]
[1755591245115,2.95,179.51,179.41,3.15]
[1755591246111,2.95,179.51,179.43,3.15]
[1755591246414,2.95,179.51,179.32,20.4368]
[1755591246415,2.95,179.56,179.46,3.15]
[1755591246815,2.95,179.56,179.48,6.87608011]
[1755591248219,2.95,179.56,179.49,3.15]
[1755591248409,136.74,179.57,179.49,3.15]
[1755591248813,136.74,179.57,179.51,3.72608011]
[1755591249020,136.74,179.57,179.53,3.15]
[1755591249220,377.49,179.59,179.53,3.15]
[1755591249416,2.95,179.59,179.53,3.15]
[1755591250322,136.76,179.62,179.55,3.15]
[1755591251220,2.95,179.61,179.55,3.15]
[1755591254019,136.76,179.62,179.55,3.15]
[1755591254809,2.95,179.64,179.55,3.15]
[1755591255118,2.95,179.64,179.58,3.15]
[1755591257319,139.65,179.67,179.58,3.15]
[1755591257522,139.65,179.67,179.6,3.72608011]
[1755591257723,139.65,179.67,179.6,6.87608011]
[1755591258017,2.95,179.67,179.6,6.87608011]
[1755591258910,2.95,179.67,179.57,3.15]
[1755591259417,6.67608011,179.67,179.57,3.15]
[1755591259617,2.95,179.66,179.57,3.15]
[1755591259817,2.95,179.66,179.54,3.15]
[1755591260217,4.52897813,179.65,179.54,3.15]
[1755591260422,3.72608011,179.64,179.54,3.15]
[1755591260618,2.95,179.63,179.54,3.15]
[1755591262725,2.95,179.63,179.53,3.01]
[1755591262927,2.95,179.63,179.56,3.01]
[1755591264522,2.95,179.63,179.52,6.73608011]
[1755591265423,3.03,179.61,179.52,3.01]
[1755591266216,3.03,179.61,179.48,6.73608011]
[1755591266421,3.03,179.61,179.48,3.72608011]
[1755591266618,3.03,179.61,179.49,3.01]
[1755591266823,3.03,179.61,179.52,3.01]
[1755591267227,3.03,179.61,179.52,5.5679]
[1755591267423,3.03,179.61,179.54,3.72608011]
[1755591267619,3.03,179.61,179.55,3.01]
[1755591267819,6.75608011,179.65,179.55,3.01]
[1755591268024,4.53819003,179.64,179.55,3.01]
[1755591268329,3.03,179.65,179.57,3.72608011]
[1755591268530,3.03,179.65,179.58,3.01]
[1755591269625,136.7,179.68,179.61,3.01]
[1755591271130,377.23,179.69,179.61,3.01]
[1755591271131,3.03,179.69,179.61,3.01]
[1755591272227,3.03,179.69,179.63,3.72608011]
[1755591272436,3.03,179.72,179.64,3.01]
[1755591273026,140.05,179.75,179.67,3.01]
[1755591273426,3.03,179.74,179.67,3.01]
[1755591275322,137.02,179.75,179.69,3.72608011]
[1755591275529,137.02,179.75,179.71,3.01]
[1755591275829,140.05,179.75,179.71,3.01]
[1755591277229,140.05,179.75,179.69,3.72608011]
[1755591277230,137.02,179.75,179.69,3.72608011]
[1755591277430,137.02,179.75,179.71,3.01]
[1755591277922,140.05,179.75,179.71,3.01]
[1755591278635,137.02,179.75,179.69,3.72608011]
[1755591278836,3.03,179.77,179.73,3.01]
[1755591279928,3.03,179.76,179.73,3.01]
[1755591281037,3.03,179.79,179.73,3.01]
[1755591281231,3.03,179.79,179.7,3.01]
[1755591283133,3.03,179.79,179.7,8.5726]
[1755591283334,136.98,179.8,179.73,3.01]
[1755591285036,136.98,179.8,179.75,3.72608011]
[1755591285233,3.03,179.82,179.77,3.01]
[1755591285429,3.03,179.81,179.77,3.01]
[1755591286134,140.07,179.84,179.78,3.01]
[1755591287140,140.07,179.84,179.75,6.73608011]
[1755591287532,140.07,179.84,179.76,3.01]
[1755591287843,3.03,179.84,179.76,3.01]
[1755591290138,3.03,179.84,179.76,5.5607]
[1755591290344,3.03,179.84,179.77,3.01]
[1755591290542,3.03,179.84,179.78,3.01]
[1755591290844,3.03,179.84,179.78,6.73608011]
[1755591291140,3.03,179.87,179.79,3.01]
[1755591291538,3.03,179.87,179.82,3.01]
[1755591291742,3.03,179.87,179.83,3.01]
[1755591291943,3.03,179.89,179.81,3.72608011]
[1755591292440,3.03,179.89,179.82,2.95]
[1755591295639,136.92,179.9,179.82,2.95]
[1755591295839,2.98,179.92,179.82,2.95]
[1755591296043,2.98,179.92,179.82,8.5087]
[1755591296437,2.98,179.92,179.83,2.95]
[1755591298446,2.98,179.92,179.84,3.72608011]
[1755591300250,2.98,179.92,179.8,2.95]
[1755591300445,2.98,179.92,179.84,2.95]
[1755591301941,2.98,179.92,179.83,3.72608011]
[1755591302147,2.98,179.92,179.8,6.67608011]
[1755591302947,2.98,179.92,179.81,2.95]
[1755591303143,2.98,179.92,179.83,2.95]
[1755591303349,2.98,179.92,179.85,3.72608011]
[1755591305243,2.98,179.92,179.84,6.67608011]
[1755591305646,2.98,179.92,179.85,2.95]
[1755591306044,139.86,179.96,179.88,2.95]
[1755591306444,139.86,179.96,179.76,3.72608011]
[1755591306445,2.98,179.95,179.85,3.72608011]
[1755591306645,2.98,179.95,179.84,2.95]
[1755591306850,3.72608011,179.94,179.84,2.95]
[1755591307051,2.98,179.93,179.84,2.95]
[1755591307648,2.98,179.93,179.8,2.95]
[1755591307649,3.72608011,179.91,179.8,2.95]
[1755591307861,2.98,179.9,179.8,2.95]
[1755591308361,2.98,179.9,179.82,2.95]
[1755591308553,2.98,179.9,179.83,5.5585]
[1755591308759,136.88,179.96,179.84,3.72608011]
[1755591308953,2.98,179.95,179.87,3.72608011]
[1755591309159,136.88,179.96,179.82,2.95]
[1755591309160,3.72608011,179.94,179.82,2.95]
[1755591309359,2.98,179.93,179.82,2.95]
[1755591310359,2.98,179.93,179.85,2.95]
[1755591310558,2.98,179.93,179.89,2.95]
[1755591310759,2.98,179.93,179.9,2.95]
[1755591311562,2.98,179.93,179.87,6.67608011]
[1755591311961,136.88,179.96,179.87,6.67608011]
[1755591312158,139.86,179.96,179.87,6.67608011]
[1755591312560,139.86,179.96,179.87,3.72608011]
[1755591312762,2.98,180.0,179.91,2.95]
[1755591312964,4.51052814,179.99,179.91,2.95]
[1755591313156,2.98,180.0,179.91,2.95]
[1755591313359,140.26,180.02,179.93,3.72608011]
[1755591313557,140.26,180.02,179.93,6.67608011]
[1755591314269,4.51491354,180.01,179.93,6.67608011]
[1755591314466,140.26,180.02,179.93,6.67608011]
[1755591314657,140.26,180.02,179.93,12.23138011]
[1755591316464,140.26,180.02,179.93,6.67608011]
[1755591316658,2.98,180.02,179.96,6.67608011]
[1755591320573,2.98,180.07,179.96,6.67608011]
[1755591320776,2.98,180.05,179.97,2.95]
[1755591320975,4.51460276,180.04,179.97,2.95]
[1755591321170,2.98,180.05,179.97,2.95]
[1755591321374,4.51569259,180.04,179.97,2.95]
[1755591321577,2.98,180.05,179.97,2.95]
[1755591321872,2.98,180.03,179.97,2.95]
[1755591323178,3.2,180.06,179.97,2.95]
[1755591323375,3.2,180.06,179.88,3.72608011]
[1755591323376,4.51573231,180.05,180.0,3.09]
[1755591323584,3.2,180.06,180.02,3.09]
[1755591324472,3.2,180.06,179.99,3.72608011]
[1755591324473,3.2,180.06,179.99,9.27958011]
[1755591324784,3.2,180.11,180.03,3.09]
[1755591324991,4.5130876,180.1,180.03,3.09]
[1755591325276,4.5130876,180.09,180.03,3.09]
[1755591325581,3.2,180.11,180.04,3.72608011]
[1755591326578,3.2,180.11,180.05,3.09]
[1755591326775,140.3,180.14,180.05,3.09]
[1755591326985,4.5107528,180.13,180.07,3.72608011]
[1755591327178,3.2,180.21,180.1,3.72608011]
[1755591327387,3.2,180.19,180.1,6.81608011]
[1755591327684,3.2,180.17,180.1,3.72608011]
[1755591327888,4.5121474,180.16,180.1,3.72608011]
[1755591328082,3.2,180.17,180.1,3.72608011]
[1755591328481,3.2,180.17,180.06,3.09]
[1755591328482,3.2,180.15,180.07,3.72608011]
[1755591328684,4.50692877,180.14,180.07,3.72608011]
[1755591328986,374.32626406,180.22,180.06,3.09]
[1755591328987,3.2,180.13,180.06,3.09]
[1755591330288,3.2,180.15,180.06,3.09]
[1755591331080,3.2,180.15,180.07,3.72608011]
[1755591331485,3.2,180.15,180.08,3.09]
[1755591332388,3.2,180.15,180.05,3.72608011]
[1755591333088,3.72608011,180.17,180.04,3.09]
[1755591333089,3.2,180.13,180.04,3.09]
[1755591333689,3.2,180.17,180.07,3.09]
[1755591333989,3.2,180.17,180.07,8.6409]
[1755591334482,3.2,180.17,180.07,3.09]
[1755591335988,3.2,180.17,180.07,8.6411]
[1755591336687,3.2,180.17,180.07,3.09]
[1755591337290,3.2,180.17,180.07,6.81608011]
[1755591337792,3.2,180.15,180.04,6.81608011]
[1755591338088,3.2,180.15,180.04,3.72608011]
[1755591338390,3.2,180.15,180.08,3.09]
[1755591338986,3.2,180.15,180.04,3.72608011]
[1755591339387,3.2,180.15,180.05,8.6417]
[1755591339994,3.2,180.15,180.05,3.09]
[1755591340181,3.2,180.15,180.02,3.72608011]
[1755591340386,3.2,180.13,180.01,6.81608011]
[1755591340588,7.7110131,180.12,180.01,6.81608011]
[1755591340787,3.2,180.12,180.01,6.81608011]
[1755591341101,3.2,180.1,179.99,9.27968011]
[1755591341591,3.2,180.13,180.06,3.09]
[1755591341790,3.2,180.13,180.08,3.72608011]
[1755591341995,3.2,180.13,180.09,3.09]
[1755591342386,137.56,180.18,180.05,6.81608011]
[1755591342592,3.2,180.15,180.02,6.81608011]
[1755591342791,3.2,180.13,180.02,6.81608011]
[1755591343091,3.2,180.11,180.02,6.81608011]
[1755591343394,3.2,180.11,180.02,3.09]
[1755591344600,3.2,180.09,179.94,3.09]
[1755591344791,3.2,180.07,179.97,6.81608011]
[1755591344991,3.2,180.07,179.97,3.09]
[1755591345702,3.2,180.07,179.96,3.72608011]
[1755591345897,3.2,180.05,179.94,3.09]
[1755591347400,3.2,180.05,179.94,8.6451]
[1755591347595,3.2,180.05,179.95,3.09]
[1755591347900,3.2,180.05,179.97,3.09]
[1755591349398,3.2,180.05,179.93,376.45]
[1755591349508,4.52548517,180.04,179.89,3.09]
[1755591349804,3.2,180.02,179.89,3.09]
[1755591350004,3.2,180.02,179.93,3.09]
[1755591350805,3.2,180.06,179.93,3.09]
[1755591351200,3.2,180.06,179.97,3.09]
[1755591352106,3.2,180.06,179.93,3.09]
[1755591352305,4.5298987,180.05,179.93,3.09]
[1755591352513,7.47039264,180.04,179.93,3.09]
[1755591352712,7.47122183,180.03,179.93,3.09]
[1755591352905,2.94,180.03,179.93,3.09]
[1755591353702,2.94,180.03,179.94,5.76017999]
[1755591353908,2.94,180.03,179.95,8.5248]
[1755591354502,2.94,180.07,179.94,5.76017999]
[1755591354703,4.53645421,180.06,179.95,2.97]
[1755591354907,2.94,180.07,179.98,5.76017999]
[1755591355215,2.94,180.07,179.99,2.97]
[1755591358111,2.94,180.07,179.98,5.76017999]
[1755591358317,2.94,180.05,179.95,2.97]
[1755591358518,4.54505023,180.04,179.95,2.97]
[1755591358713,2.94,180.05,179.95,2.97]
[1755591359116,2.94,180.03,179.95,2.97]
[1755591359320,2.94,180.03,179.93,5.76017999]
[1755591359614,2.94,180.03,179.94,2.97]
[1755591360313,2.94,180.03,179.91,4.61639233]
[1755591360519,2.94,180.01,179.9,2.97]
[1755591361223,2.94,179.99,179.9,2.97]
[1755591361416,2.94,179.99,179.87,84.0459024]
[1755591361417,2.94,179.97,179.87,84.0459024]
[1755591361610,4.54820057,179.98,179.81,7.58639233]
[1755591361611,4.54820057,179.96,179.81,7.58639233]
[1755591361811,4.54820057,179.95,179.81,7.58639233]
[1755591362011,4.54820057,179.95,179.81,2.97]
[1755591362012,2.94,179.94,179.81,2.97]
[1755591362212,2.94,179.94,179.82,5.76017999]
[1755591362416,2.94,179.98,179.86,8.73017999]
[1755591363117,2.94,179.98,179.87,2.97]
[1755591363413,2.94,179.98,179.87,8.5271]
[1755591363623,2.94,179.98,179.87,2.97]
[1755591363923,2.94,179.98,179.88,5.5568]
[1755591364113,2.94,179.98,179.87,2.97]
[1755591367222,2.94,179.98,179.87,8.5271]
[1755591367625,138.16,180.01,179.88,2.97]
[1755591367818,141.1,180.01,179.9,11.31657999]
[1755591368019,141.1,180.01,179.91,2.97]
[1755591369116,138.16,180.01,179.91,2.97]
[1755591369323,2.94,180.0,179.91,2.97]
[1755591369723,2.94,180.0,179.87,2.97]
[1755591370823,2.94,180.0,179.87,8.5273]
[1755591371025,2.94,180.0,179.87,2.97]
[1755591371622,2.94,180.0,179.9,2.97]
[1755591371822,2.94,180.0,179.9,8.73017999]
[1755591374327,2.94,180.0,179.86,8.73017999]
[1755591374836,2.94,180.0,179.87,8.5271]
[1755591375636,2.94,180.0,179.87,2.97]
[1755591377329,2.94,180.0,179.82,8.73017999]
[1755591377330,4.53655009,179.99,179.82,8.73017999]
[1755591377635,2.94,179.97,179.82,8.73017999]
[1755591377836,2.94,179.97,179.84,5.5582]
[1755591378028,2.94,179.97,179.82,5.76017999]
[1755591378238,2.94,179.97,179.83,2.97]
[1755591378432,2.94,179.97,179.86,5.5576]
[1755591378634,2.94,179.97,179.83,2.97]
[1755591380234,2.94,179.97,179.83,8.5285]
[1755591380540,2.94,179.97,179.83,2.97]
[1755591381435,2.94,179.97,179.86,2.97]
[1755591383642,4.54676039,179.96,179.86,2.97]
[1755591383843,3.09,179.95,179.86,2.97]
[1755591384035,3.09,179.95,179.82,8.7287]
[1755591384236,3.09,179.95,179.82,13.34509233]
[1755591384637,3.09,179.95,179.83,5.5585]
[1755591385038,3.09,179.95,179.84,3.17]
[1755591385240,3.09,179.95,179.86,3.17]
[1755591385432,3.09,179.99,179.86,3.17]
[1755591385744,3.09,179.99,179.9,3.17]
[1755591386239,3.09,179.97,179.86,3.17]
[1755591386439,4.5510423,179.96,179.88,3.70543163]
[1755591386638,3.09,179.97,179.88,3.70543163]
[1755591386837,3.09,179.97,179.89,3.17]
[1755591387041,3.09,179.97,179.91,3.70543163]
[1755591388347,3.09,180.05,179.95,3.70543163]
[1755591388550,4.55473904,180.04,179.98,3.70543163]
[1755591388845,7.64473904,180.03,179.97,3.70543163]
[1755591389046,4.55473904,180.02,179.95,3.17]
[1755591389244,4.55473904,180.01,179.94,3.70543163]
[1755591389541,7.64652005,180.0,179.91,6.87543163]
[1755591389842,3.09,180.0,179.91,6.87543163]
[1755591390040,4.55661179,179.99,179.91,6.87543163]
[1755591390235,3.09,180.0,179.91,3.70543163]
[1755591390438,4.55698056,179.99,179.87,13.54944243]
[1755591390638,4.55698056,179.98,179.87,13.54944243]
[1755591390839,3.09,180.0,179.87,19.10654243]
[1755591391044,4.55794306,179.99,179.87,19.10654243]
[1755591391244,4.55794306,179.98,179.87,19.10654243]
[1755591391446,3.09,180.0,179.87,19.10654243]
[1755591391641,4.55836434,179.99,179.87,13.54944243]
[1755591391841,7.64836434,179.98,179.87,8.9330501]